bitfinex-derivatives/quotes_BNBF0:USTF0_20250424
["timestamp","ask_amount","ask_price","bid_price","bid_amount"]
[1745477176441,1.26151995,606.04,604.26,1.45518288]
[1745477176745,1.26151995,606.04,604.27,1.45543401]
[1745477176943,1.26151995,606.04,604.28,1.45543401]
[1745477177145,1.26151995,606.04,604.29,2.53000519]
[1745477177346,1.26151995,606.04,604.3,0.84495256]
[1745477177547,1.26151995,605.72,604.3,0.84495256]
[1745477178242,1.26151995,605.72,604.31,1.07457118]
[1745477178450,1.26151995,605.72,604.32,0.84495256]
[1745477179148,1.26151995,605.72,604.33,1.07457118]
[1745477179949,1.26151995,605.72,604.34,1.07457118]
[1745477180249,1.26151995,605.63,604.16,1.599]
[1745477180448,1.26151995,605.63,604.35,1.07494364]
[1745477181048,1.26151995,605.63,604.36,1.07494364]
[1745477181448,1.26151995,605.63,604.37,1.07494364]
[1745477181948,1.26151995,605.63,604.38,1.07494364]
[1745477182150,0.28776621,605.62,604.38,1.07494364]
[1745477182650,0.28776621,605.62,604.39,1.07494364]
[1745477182950,0.28776621,605.62,604.4,1.07494364]
[1745477183649,0.28776621,605.62,604.41,1.07494364]
[1745477184047,0.28776621,605.62,604.42,1.07494364]
[1745477184750,0.28776621,605.62,604.43,1.07494364]
[1745477185046,0.28776621,605.62,604.44,1.07494364]
[1745477185246,1.26151995,605.61,604.44,1.07494364]
[1745477185546,1.26151995,605.61,604.16,1.599]
[1745477185744,1.26151995,605.61,604.17,1.45673798]
[1745477185951,1.26151995,605.61,604.18,1.45673828]
[1745477186249,1.26151995,605.61,604.19,1.45673828]
[1745477186450,1.26151995,605.61,604.2,1.45673828]
[1745477186650,1.26151995,605.61,604.21,1.45673828]
[1745477186846,1.26151995,605.61,604.22,1.45673828]
[1745477187052,1.26151995,605.61,604.23,2.53231814]
[1745477187251,1.26151995,605.61,604.24,1.45673828]
[1745477187451,1.26151995,605.61,604.25,1.45673828]
[1745477187652,1.26151995,605.61,604.26,1.45673828]
[1745477187952,1.26151995,605.48,604.27,1.45673828]
[1745477188152,1.26151995,605.48,604.28,2.53231814]
[1745477188352,1.26151995,605.48,604.29,1.45673828]
[1745477188562,0.28779596,605.47,604.3,1.45673828]
[1745477188753,0.28779596,605.47,604.31,1.45673828]
[1745477188953,0.28779596,605.47,604.32,1.45673828]
[1745477189150,0.28779596,605.47,604.33,1.45673828]
[1745477189355,0.28779596,605.47,604.34,1.9212911]
[1745477189655,0.28779596,605.47,604.35,1.92149047]
[1745477189855,0.28779596,605.47,604.36,0.84591061]
[1745477190352,0.28779596,605.47,604.37,1.07557986]
[1745477191157,0.28779596,605.47,604.38,1.07557986]
[1745477191456,1.26151995,605.59,604.38,1.07557986]
[1745477192257,1.26151995,605.59,604.39,1.07557986]
[1745477192557,0.28776978,605.58,604.39,1.07557986]
[1745477192957,0.28776978,605.58,604.4,1.07557986]
[1745477193359,0.28776978,605.58,604.41,1.07557986]
[1745477193963,0.28776978,605.58,604.42,1.07557986]
[1745477194263,1.26151995,605.65,604.42,1.07557986]
[1745477194458,1.26151995,605.65,604.43,1.07557986]
[1745477195263,1.26151995,605.65,604.43,2.52657986]
[1745477195463,1.26151995,605.65,604.44,1.07557986]
[1745477195663,1.26151995,605.62,604.45,1.07557986]
[1745477196164,1.26151995,605.62,604.46,1.07557986]
[1745477196463,1.26151995,605.62,604.43,1.451]
[1745477196964,1.26151995,605.62,604.44,1.07613776]
[1745477197459,1.26151995,605.62,604.45,1.07613776]
[1745477198064,1.26151995,605.59,604.45,1.07613776]
[1745477198363,1.26151995,605.59,604.46,1.07613776]
[1745477198563,0.28776146,605.58,604.46,1.07613776]
[1745477198764,0.28776146,605.58,604.43,1.451]
[1745477199265,0.28776146,605.58,604.44,1.07625171]
[1745477199660,0.28776146,605.58,604.43,1.451]
[1745477200261,1.26151995,605.59,604.43,1.451]
[1745477200566,1.26151995,605.4,604.43,1.451]
[1745477200965,1.26151995,605.4,604.44,1.07625033]
[1745477201261,1.26151995,605.4,604.45,1.07625033]
[1745477201568,0.28778525,605.39,604.45,1.07625033]
[1745477202369,0.28778525,605.39,604.46,1.07625033]
[1745477202766,0.28778525,605.39,604.47,1.07625033]
[1745477203270,1.26151995,605.33,604.47,1.07625033]
[1745477203470,1.26151995,605.33,604.48,1.07625033]
[1745477203670,1.26151995,605.33,604.49,0.84577155]
[1745477203867,1.26151995,605.33,604.5,1.92195471]
[1745477204068,1.26151995,605.33,604.51,0.84564703]
[1745477204271,1.26151995,605.33,604.52,0.84564703]
[1745477204471,1.26151995,605.33,604.53,1.45631205]
[1745477204673,1.26151995,605.33,604.54,2.53256238]
[1745477204869,1.26151995,605.33,604.55,1.92189736]
[1745477205072,1.26151995,605.33,604.56,0.84564703]
[1745477205269,1.26151995,605.33,604.57,1.92132049]
[1745477205469,1.26151995,605.33,604.58,1.07625033]
[1745477205676,0.28773766,605.57,604.58,1.07625033]
[1745477205970,1.26151995,605.75,604.59,1.92069195]
[1745477206173,1.26151995,605.75,604.6,1.45456878]
[1745477206374,0.2876461,605.71,604.61,1.45426123]
[1745477206574,0.2876461,605.71,604.62,2.53051156]
[1745477206874,0.2876461,605.71,604.63,1.9203844]
[1745477207074,0.2876461,605.71,604.64,0.84413407]
[1745477207270,0.2876461,605.71,604.63,1.07625033]
[1745477207474,0.2876461,605.71,604.65,1.07625033]
[1745477207775,0.2876461,605.71,604.66,1.07625033]
[1745477208274,0.2876461,605.71,604.67,1.07625033]
[1745477208674,0.2876461,605.71,604.68,1.07625033]
[1745477208873,0.2876461,605.71,604.69,1.07625033]
[1745477209369,1.26151995,606.03,604.3,1.44]
[1745477209569,0.28759974,605.71,604.31,1.45062445]
[1745477209767,1.26151995,606.03,604.32,1.45062445]
[1745477209974,1.26151995,606.03,604.33,1.45062445]
[1745477210174,1.26151995,606.03,604.34,1.45062445]
[1745477210371,1.26151995,606.09,604.35,1.45062445]
[1745477210575,0.28764253,606.02,604.36,2.52172897]
[1745477210776,0.28764253,606.02,604.37,1.45062445]
[1745477210977,0.28764253,606.02,604.38,1.45062445]
[1745477211174,0.28764253,606.02,604.39,1.45062445]
[1745477211376,0.28764253,606.02,604.4,1.45062445]
[1745477211576,0.28764253,606.02,604.41,1.45062445]
[1745477211873,0.28764253,606.02,604.42,2.52172897]
[1745477212077,0.28764253,606.02,604.43,1.45062445]
[1745477212378,1.26151995,606.09,604.44,2.52172897]
[1745477212580,1.26151995,606.09,604.45,1.45062445]
[1745477212780,1.26151995,606.09,604.46,2.52172897]
[1745477212977,1.26151995,606.09,604.47,1.45062445]
[1745477213174,1.26151995,606.09,604.48,1.45062445]
[1745477213379,1.26151995,606.26,604.49,1.45062445]
[1745477213680,0.28761163,606.08,604.5,2.52083046]
[1745477213880,1.26151995,606.26,604.51,1.44972594]
[1745477214079,1.26151995,606.26,604.52,2.52083046]
[1745477214279,1.26151995,606.26,604.53,1.44958626]
[1745477214478,1.26151995,606.26,604.54,1.91319437]
[1745477214683,1.26151995,606.26,604.55,0.84208985]
[1745477214881,1.26151995,606.26,604.56,1.07110452]
[1745477215380,0.28758073,606.25,604.56,1.07110452]
[1745477215580,0.28758073,606.25,604.57,1.07110452]
[1745477215778,0.28758073,606.25,604.58,0.84035176]
[1745477215980,0.28758073,606.25,604.57,1.07110452]
[1745477216178,0.28758073,606.25,604.58,1.07110452]
[1745477216882,0.28758073,606.25,604.59,0.84009482]
[1745477217076,0.28758073,606.25,604.58,1.07110452]
[1745477217077,0.28758073,606.25,604.6,1.07110452]
[1745477217480,0.28758073,606.25,604.61,1.07110452]
[1745477218182,0.28758073,606.25,604.62,1.07110452]
[1745477219282,0.28758073,606.25,604.63,1.07110452]
[1745477219784,0.28758073,606.25,604.64,1.07110452]
[1745477221082,0.28758073,606.25,604.65,1.07110452]
[1745477221280,1.26151995,606.51,604.65,1.07110452]
[1745477221588,1.26151995,606.21,604.65,1.07110452]
[1745477221780,1.26151995,606.21,604.66,1.07110452]
[1745477222385,1.26151995,606.21,604.62,1.06]
[1745477222587,0.28756528,606.2,604.62,1.06]
[1745477224184,1.26151995,606.21,604.62,1.06]
[1745477224582,1.26151995,606.2,604.62,1.06]
[1745477225486,0.28757122,606.19,604.62,1.06]
[1745477227190,1.26151995,606.12,604.62,1.06]
[1745477228588,0.28760449,606.11,604.62,1.06]
[1745477230290,1.26151995,606.12,604.62,1.06]
[1745477230691,1.26151995,606.35,604.62,1.06]
[1745477231491,0.28757716,606.34,604.62,1.06]
[1745477233394,1.26151995,606.35,604.62,1.06]
[1745477233693,2.14633602,607.08,604.62,1.06]
[1745477233694,1.26151995,606.3,604.62,1.06]
[1745477234496,0.28755934,606.29,604.63,1.06718319]
[1745477234699,0.28755934,606.29,604.64,1.06718319]
[1745477234896,0.28755934,606.29,604.59,1.583]
[1745477235598,0.28755934,606.29,604.6,1.06707801]
[1745477235898,2.14633602,606.28,604.6,1.06707801]
[1745477236098,1.26151995,605.99,604.61,1.06707801]
[1745477236598,1.26151995,605.99,604.62,1.06707801]
[1745477237199,1.26151995,605.99,604.6,1.06707801]
[1745477237701,0.28758905,605.98,604.6,1.06707801]
[1745477237893,0.28758905,605.98,604.61,1.06707801]
[1745477238299,0.28758905,605.98,604.62,1.06707801]
[1745477238795,1.26151995,605.87,604.62,1.06707801]
[1745477239200,1.26151995,605.87,604.59,1.583]
[1745477240500,0.28762351,605.86,604.59,1.583]
[1745477240896,0.28762351,605.86,604.6,1.06719631]
[1745477241102,0.28762351,605.86,604.61,1.06719631]
[1745477241403,1.26151995,605.73,604.61,1.06719631]
[1745477241804,1.26151995,605.73,604.62,1.06719631]
[1745477242297,1.26151995,605.73,604.59,1.583]
[1745477243206,1.26151995,605.73,604.6,1.06721982]
[1745477243703,1.26151995,605.73,604.61,1.06721982]
[1745477244002,1.26151995,605.73,604.6,1.06721982]
[1745477244398,0.28764015,605.74,604.6,1.06721982]
[1745477245304,1.26151995,606.3,604.6,1.06721982]
[1745477246508,0.28757122,606.29,604.6,1.06721982]
[1745477247905,1.54909117,606.29,604.6,1.06721982]
[1745477248303,1.26151995,606.29,604.6,1.06721982]
[1745477248706,1.26151995,606.29,604.61,1.352]
[1745477248906,1.26151995,606.29,604.62,1.06721982]
[1745477249509,0.2875534,606.28,604.62,1.06721982]
[1745477251307,1.26151995,606.35,604.62,1.06721982]
[1745477252620,0.28754627,606.34,604.62,1.06721982]
[1745477252908,0.28754627,606.34,604.63,2.51452427]
[1745477253110,0.28754627,606.34,604.64,1.44730445]
[1745477253305,1.26151995,606.18,604.65,1.44730445]
[1745477253504,1.26151995,606.18,604.66,1.44730445]
[1745477253706,1.26151995,606.18,604.67,0.60717084]
[1745477253909,1.26151995,606.18,604.68,2.51438462]
[1745477254104,1.26151995,606.18,604.69,1.4471648]
[1745477254308,1.26151995,606.18,604.7,1.4471648]
[1745477254509,1.26151995,606.18,604.71,1.4471648]
[1745477254709,1.26151995,606.18,604.72,2.51438462]
[1745477254904,1.26151995,606.18,604.73,2.51438462]
[1745477255104,1.26151995,606.18,604.74,1.4471648]
[1745477255310,1.26151995,606.18,604.75,1.4471648]
[1745477255512,1.26151995,606.18,604.76,1.4471648]
[1745477255709,1.26151995,606.18,604.77,2.5141037]
[1745477255906,1.26151995,606.18,604.78,1.44689514]
[1745477256112,1.26151995,606.18,604.79,0.83999396]
[1745477256313,1.26151995,606.18,604.8,0.83999396]
[1745477256508,1.26151995,606.18,604.81,0.83999396]
[1745477256812,1.26151995,606.18,604.81,1.06721982]
[1745477257314,1.26151995,606.18,604.62,1.06721982]
[1745477257516,1.26151995,606.18,604.63,1.75080265]
[1745477257715,1.26151995,606.18,604.64,1.75080265]
[1745477258011,1.26151995,606.18,604.65,1.75050079]
[1745477258217,1.26151995,606.18,604.66,1.44687155]
[1745477258415,1.26151995,606.01,604.67,1.44687155]
[1745477258615,1.26151995,606.01,604.68,2.51409137]
[1745477258815,1.26151995,606.01,604.69,1.44687155]
[1745477259011,1.26151995,606.01,604.7,1.44687155]
[1745477259216,1.26151995,606.01,604.71,1.44687155]
[1745477259417,1.26151995,606.01,604.72,1.44721672]
[1745477259614,1.26151995,606.01,604.73,1.44721672]
[1745477259920,1.26151995,606.01,604.74,0.83985185]
[1745477260218,1.26151995,606.01,604.73,1.06721982]
[1745477260419,1.26151995,606.01,604.66,1.06721982]
[1745477260720,1.26151995,606.05,604.67,1.44863924]
[1745477261018,1.26151995,606.05,604.68,1.44863924]
[1745477261217,1.26151995,606.05,604.69,1.44863924]
[1745477261414,1.26151995,606.05,604.7,2.51625151]
[1745477261718,0.28754865,606.04,604.71,1.44903169]
[1745477261914,0.28754865,606.04,604.72,0.84129098]
[1745477262215,0.28754865,606.04,604.73,1.44957896]
[1745477262418,0.28754865,606.04,604.74,0.84129098]
[1745477262714,0.28754865,606.04,604.65,1.614]
[1745477262715,0.28754865,606.04,604.75,1.06721982]
[1745477262916,0.28754865,606.04,604.75,2.81021982]
[1745477263220,1.26151995,606.05,604.75,2.81021982]
[1745477263415,1.26151995,606.05,604.76,1.06721982]
[1745477263820,1.26151995,606.05,604.77,1.06721982]
[1745477264222,1.26151995,606.0,604.77,1.06721982]
[1745477264420,1.26151995,606.0,604.78,1.06721982]
[1745477264818,1.26151995,606.0,604.79,1.06721982]
[1745477265322,1.26151995,606.0,604.8,1.06721982]
[1745477265921,1.26151995,606.0,604.81,1.06721982]
[1745477266420,1.26151995,606.0,604.79,1.06721982]
[1745477266624,1.26151995,606.26,604.79,1.06721982]
[1745477267521,0.28753439,606.25,604.79,1.06721982]
[1745477268121,0.28753439,606.25,604.8,1.06721982]
[1745477268923,0.28753439,606.25,604.81,1.06721982]
[1745477269217,0.28753439,606.25,604.82,1.06721982]
[1745477269423,1.26151995,606.26,604.82,1.06721982]
[1745477269624,0.28753202,606.24,604.83,1.06721982]
[1745477270121,0.28753202,606.24,604.84,1.06721982]
[1745477270822,0.28753202,606.24,604.85,1.06721982]
[1745477271421,0.28753202,606.24,604.86,1.06721982]
[1745477271924,0.28753202,606.24,604.87,1.06721982]
[1745477272222,1.26151995,606.75,604.87,1.06721982]
[1745477272622,0.28746789,606.23,604.88,1.06721982]
[1745477273122,1.26151995,606.75,604.88,1.06721982]
[1745477273321,1.26151995,606.75,604.89,1.06721982]
[1745477273718,0.28743702,606.74,604.89,1.06721982]
[1745477274119,0.28743702,606.74,604.9,1.06721982]
[1745477274324,1.26151995,606.28,604.9,1.06721982]
[1745477274723,1.26151995,606.28,604.91,0.84168235]
[1745477274923,1.26151995,606.28,604.92,1.90884992]
[1745477275123,1.26151995,606.28,604.92,1.06721982]
[1745477275526,1.26151995,606.28,604.93,1.06721982]
[1745477275919,1.26151995,606.28,604.94,1.06721982]
[1745477276518,1.26151995,606.39,604.94,1.06721982]
[1745477276723,0.28746433,606.27,604.95,1.06721982]
[1745477277022,1.26151995,606.39,604.95,2.48221982]
[1745477277322,1.26151995,606.39,604.96,1.06721982]
[1745477278322,0.28744889,606.38,604.96,1.06721982]
[1745477280725,0.28744889,606.38,604.97,1.548]
[1745477281226,1.26151995,606.41,604.97,1.548]
[1745477281423,1.26151995,606.41,604.98,1.06721982]
[1745477282421,1.26151995,606.4,604.98,1.06721982]
[1745477282726,1.54896409,606.4,604.98,1.06721982]
[1745477284028,1.54896409,606.4,604.97,1.548]
[1745477284233,1.26151995,606.4,604.97,1.548]
[1745477284531,0.28746076,606.39,604.97,1.548]
[1745477285334,1.26151995,606.2,604.97,1.548]
[1745477287530,0.28747026,606.19,604.97,1.548]
[1745477288733,0.28747026,606.19,604.98,1.06955538]
[1745477289633,0.28747026,606.19,604.99,1.06955538]
[1745477290230,1.26151995,606.84,604.98,1.06955538]
[1745477290629,0.28737175,606.83,604.98,1.06955538]
[1745477291634,0.28737175,606.83,604.97,1.548]
[1745477293835,1.26151995,606.27,604.97,1.548]
[1745477295631,1.26151995,606.27,604.98,1.602]
[1745477296439,1.26151995,606.37,604.98,1.602]
[1745477296640,0.28746789,606.26,604.98,1.602]
[1745477296834,1.26151995,606.37,604.98,1.602]
[1745477297539,0.28745601,606.36,604.98,1.602]
[1745477299239,1.26151995,606.37,604.98,1.602]
[1745477299840,1.26151995,606.3,604.98,1.602]
[1745477300441,1.26151995,606.3,604.14,1.04785832]
[1745477300740,0.28746433,606.29,604.66,0.28746433]
[1745477300933,0.28746433,606.29,604.67,2.52042546]
[1745477301133,0.28746433,606.29,604.68,1.44982572]
[1745477301336,0.28746433,606.29,604.69,2.52042546]
[1745477301536,0.28746433,606.29,604.7,1.44982572]
[1745477301737,0.28746433,606.29,604.71,1.44982572]
[1745477302038,0.28746433,606.29,604.72,2.52042546]
[1745477302239,0.28746433,606.29,604.73,1.44982572]
[1745477302435,1.26151995,606.3,604.74,1.44982572]
[1745477302638,1.26151995,606.4,604.75,2.52042546]
[1745477302836,1.26151995,606.4,604.76,1.44982572]
[1745477303041,1.26151995,606.4,604.77,2.52042546]
[1745477303237,1.26151995,606.4,604.78,1.44982572]
[1745477303437,1.26151995,606.4,604.79,1.44982572]
[1745477303641,0.28746076,606.39,604.8,1.44982572]
[1745477303843,0.28746076,606.39,604.81,1.44982572]
[1745477304142,0.28746076,606.39,604.82,1.44982572]
[1745477304343,0.28746076,606.39,604.83,1.44982572]
[1745477304543,0.28746076,606.39,604.84,1.44982572]
[1745477304743,0.28746076,606.39,604.85,1.44982572]
[1745477304943,0.28746076,606.39,604.86,2.52042546]
[1745477305139,1.26151995,606.4,604.87,2.52042546]
[1745477305445,1.26151995,606.4,604.88,1.44982572]
[1745477305638,1.26151995,606.4,604.89,1.44982572]
[1745477305842,1.26151995,606.34,604.9,1.44982572]
[1745477306038,1.26151995,606.34,604.91,2.52042546]
[1745477306240,1.26151995,606.34,604.92,2.52042546]
[1745477306440,0.28740853,606.33,604.93,1.44982572]
[1745477306643,0.28740853,606.33,604.94,1.44982572]
[1745477306845,0.28740853,606.33,604.95,1.44982572]
[1745477307045,0.28740853,606.33,604.96,1.44982572]
[1745477307345,0.28740853,606.33,604.97,2.52042546]
[1745477307543,0.28740853,606.33,604.98,1.44982572]
[1745477307745,0.28740853,606.33,604.99,1.44982572]
[1745477308040,0.28740853,606.33,605.0,2.52042546]
[1745477308243,0.28740853,606.33,605.01,1.44982572]
[1745477308547,1.26151995,606.72,605.02,2.52042546]
[1745477308845,0.28736581,606.32,605.03,1.44982572]
[1745477309045,1.26151995,606.72,605.04,1.44982572]
[1745477309246,1.26151995,606.72,605.05,2.52042546]
[1745477309443,1.26151995,606.72,605.06,0.84156232]
[1745477309641,1.26151995,606.72,605.07,1.91216206]
[1745477309841,0.28736107,606.71,605.08,0.84156232]
[1745477310041,0.28736107,606.71,605.09,0.84156232]
[1745477310242,0.28736107,606.71,605.07,1.07059974]
[1745477310441,0.28736107,606.71,605.08,1.91191087]
[1745477310647,0.28736107,606.71,605.09,0.84131113]
[1745477310947,1.26151995,606.62,605.09,0.84131113]
[1745477311146,1.26151995,606.62,605.1,1.07059974]
[1745477311542,0.28735276,606.61,605.1,1.07059974]
[1745477311741,0.28735276,606.61,605.11,1.07059974]
[1745477312042,0.28735276,606.61,605.12,1.07059974]
[1745477312547,0.28735276,606.61,605.13,1.07059974]
[1745477313047,0.28735276,606.61,605.14,1.07059974]
[1745477313846,0.28735276,606.61,605.15,1.07059974]
[1745477314347,1.26151995,606.67,604.88,1.517]
[1745477314546,1.26151995,606.67,604.89,1.44915772]
[1745477314749,0.28734683,606.6,604.9,2.51926444]
[1745477314949,0.28734683,606.6,604.91,1.44915772]
[1745477315142,0.28734683,606.6,604.92,1.44915772]
[1745477315347,0.28734683,606.6,604.93,1.44915772]
[1745477315546,0.28734683,606.6,604.94,2.51926444]
[1745477315746,0.28734683,606.6,604.95,1.44915772]
[1745477315947,0.28734683,606.6,604.96,1.44915772]
[1745477316146,0.28734683,606.6,604.97,1.44915772]
[1745477316342,0.28734683,606.6,604.98,2.51926444]
[1745477316647,0.28734683,606.6,604.99,1.44915772]
[1745477316943,0.28734683,606.6,605.0,1.44915772]
[1745477317147,0.28734683,606.6,605.01,1.44915772]
[1745477317347,1.26151995,606.73,605.02,1.91124037]
[1745477317544,0.28735039,606.59,605.03,0.84113365]
[1745477317947,1.26151995,606.73,605.04,1.07010672]
[1745477318549,1.26151995,606.73,604.89,1.07010672]
[1745477318744,0.28734683,606.72,604.9,1.44893564]
[1745477318943,0.28734683,606.72,604.91,1.44893564]
[1745477319149,0.28734683,606.72,604.92,2.51904236]
[1745477319349,1.26151995,606.61,604.93,1.44893564]
[1745477319645,1.26151995,606.61,604.94,1.44893564]
[1745477319848,1.26151995,606.61,604.95,2.51904236]
[1745477320049,1.26151995,606.61,604.96,1.44893564]
[1745477320249,1.26151995,606.61,604.95,1.07010672]
[1745477320447,1.26151995,606.61,604.96,2.51884859]
[1745477320649,1.26151995,606.61,604.97,1.44874187]
[1745477320848,1.26151995,606.61,604.98,1.44874187]
[1745477321049,1.26151995,606.61,604.99,2.51884859]
[1745477321251,1.26151995,606.61,605.0,1.44874187]
[1745477321545,0.287367,606.6,605.01,1.44874187]
[1745477321751,0.287367,606.6,605.02,1.44874187]
[1745477322050,0.287367,606.6,605.03,1.44874187]
[1745477322351,0.287367,606.6,605.04,0.84089182]
[1745477322551,0.287367,606.6,605.05,1.91099854]
[1745477322851,1.26151995,606.55,605.05,1.07010672]
[1745477323050,1.26151995,606.55,605.06,1.07010672]
[1745477323444,1.26151995,606.55,605.07,1.07010672]
[1745477323649,0.28736581,606.54,605.07,1.07010672]
[1745477323849,0.28736581,606.54,605.08,1.07010672]
[1745477324252,0.28736581,606.54,605.09,1.07010672]
[1745477325249,0.28736581,606.54,605.1,1.07010672]
[1745477326053,0.28736581,606.54,605.11,1.07010672]
[1745477326256,1.26151995,606.71,605.11,1.07010672]
[1745477326654,0.2873409,606.53,605.11,1.07010672]
[1745477326852,1.26151995,606.71,605.12,1.07010672]
[1745477327050,1.26151995,606.71,605.13,1.07010672]
[1745477327454,1.26151995,606.71,605.14,1.07010672]
[1745477327749,0.28733853,606.7,605.14,1.07010672]
[1745477328654,0.28733853,606.7,605.15,1.07010672]
[1745477329054,0.28733853,606.7,604.9,1.07010672]
[1745477329251,0.28733853,606.7,604.91,1.44929039]
[1745477329449,1.26151995,606.73,604.92,2.51939711]
[1745477329755,1.26151995,606.73,604.93,2.51939711]
[1745477329954,1.26151995,606.73,604.94,1.44929039]
[1745477330255,1.26151995,606.73,604.95,2.51939711]
[1745477330457,1.26151995,606.7,604.96,1.44929039]
[1745477330657,1.26151995,606.7,604.97,2.51939711]
[1745477330855,1.26151995,606.7,604.98,1.44929039]
[1745477331051,1.26151995,606.7,604.99,1.44929039]
[1745477331251,1.26151995,606.7,605.0,1.44929039]
[1745477331549,1.26151995,606.7,605.01,1.44929039]
[1745477331853,1.26151995,606.7,605.02,2.51939711]
[1745477332052,1.26151995,606.7,605.03,1.44929039]
[1745477332253,1.26151995,606.77,605.04,2.51939711]
[1745477332557,0.28735158,606.69,605.05,1.44929039]
[1745477332758,0.28735158,606.69,605.06,1.44929039]
[1745477332956,1.26151995,606.77,605.07,1.44929039]
[1745477333252,1.26151995,606.77,605.08,1.44929039]
[1745477333453,1.26151995,606.77,605.09,0.84120572]
[1745477333758,0.28733734,606.76,605.1,0.84120572]
[1745477333958,0.28733734,606.76,605.11,1.07010672]
[1745477334258,0.28733734,606.76,605.12,1.07010672]
[1745477334459,0.28733734,606.76,605.13,1.07010672]
[1745477334658,1.54885729,606.76,605.13,1.07010672]
[1745477334960,1.54885729,606.76,605.14,1.07010672]
[1745477335461,1.26151995,606.76,605.14,1.07010672]
[1745477335755,0.28733141,606.75,605.15,1.07010672]
[1745477336055,0.28733141,606.75,604.9,1.07010672]
[1745477336264,0.28733141,606.75,604.91,1.45034172]
[1745477336462,0.28733141,606.75,604.92,1.45034172]
[1745477336656,0.28733141,606.75,604.93,1.45034172]
[1745477336857,0.28733141,606.75,604.94,1.45034172]
[1745477337056,0.28733141,606.75,604.95,1.45034172]
[1745477337262,1.26151995,606.61,604.96,2.52044844]
[1745477337460,1.26151995,606.61,604.97,1.45034172]
[1745477337657,1.26151995,606.61,604.98,1.45034172]
[1745477337862,1.26151995,606.61,604.99,1.45034172]
[1745477338157,1.26151995,606.61,605.0,2.52044844]
[1745477338362,1.26151995,606.61,605.01,1.45034172]
[1745477338558,1.26151995,606.61,605.02,1.45034172]
[1745477338758,0.28736581,606.6,605.03,1.45034172]
[1745477338959,0.28736581,606.6,605.04,1.45034172]
[1745477339259,0.28736581,606.6,605.05,1.45034172]
[1745477339460,0.28736581,606.6,605.06,0.84181762]
[1745477339660,0.28736581,606.6,605.07,1.91192434]
[1745477339860,0.28736581,606.6,605.08,0.84181762]
[1745477340063,1.26151995,606.55,605.09,1.07010672]
[1745477340767,1.26151995,606.55,605.1,1.07010672]
[1745477341167,1.26151995,606.55,605.11,1.07010672]
[1745477341662,0.28735988,606.54,605.12,1.07010672]
[1745477342464,0.28735988,606.54,604.9,1.07010672]
[1745477342669,1.26151995,606.45,604.91,1.45073131]
[1745477342864,1.26151995,606.45,604.92,2.52083803]
[1745477343061,1.26151995,606.45,604.93,1.45073131]
[1745477343263,1.26151995,606.45,604.94,1.45073131]
[1745477343468,1.26151995,606.45,604.95,2.52083803]
[1745477343767,1.26151995,606.45,604.96,2.52083803]
[1745477343968,1.26151995,606.45,604.97,1.45073131]
[1745477344168,1.26151995,606.45,604.98,1.45073131]
[1745477344366,1.26151995,606.45,604.99,2.52083803]
[1745477344563,1.26151995,606.29,605.0,1.45073131]
[1745477344767,1.26151995,606.29,605.01,1.45073131]
[1745477344963,1.26151995,606.29,605.02,2.52083803]
[1745477345265,1.26151995,606.29,605.03,1.45073131]
[1745477345469,1.26151995,606.29,605.04,1.45073131]
[1745477345668,0.28740141,606.28,605.05,1.45073131]
[1745477345862,0.28740141,606.28,605.06,1.45073131]
[1745477346062,0.28740141,606.28,605.07,2.52083803]
[1745477346270,0.28740141,606.28,605.08,1.45073131]
[1745477346467,0.28740141,606.28,605.09,2.52083803]
[1745477346669,0.28740141,606.28,605.1,1.91215053]
[1745477346870,0.28740141,606.28,605.11,0.84204381]
[1745477347072,1.26151995,606.21,605.12,1.07010672]
[1745477347563,1.26151995,606.21,605.13,1.07010672]
[1745477347969,1.26151995,606.21,605.14,1.07010672]
[1745477348470,1.26151995,606.21,605.15,1.07010672]
[1745477348671,1.54892611,606.21,605.15,1.07010672]
[1745477349070,1.54892611,606.21,605.16,1.07010672]
[1745477349670,1.54892611,606.21,605.17,1.07010672]
[1745477350266,1.26151995,606.21,605.18,1.07010672]
[1745477350571,1.26151995,606.42,605.18,1.07010672]
[1745477350870,1.26151995,606.42,604.58,1.07010672]
[1745477351068,1.26151995,606.42,604.59,1.75501692]
[1745477351368,1.26151995,606.42,604.6,1.45149243]
[1745477351565,1.26151995,606.42,604.61,1.75501761]
[1745477351767,0.28744652,606.41,604.62,1.75501761]
[1745477351964,0.28744652,606.41,604.63,2.82512433]
[1745477352169,0.28744652,606.41,604.64,1.75501761]
[1745477352367,0.28744652,606.41,604.65,1.75501761]
[1745477352566,0.28744652,606.41,604.66,1.75501761]
[1745477352768,0.28744652,606.41,604.67,1.75501761]
[1745477352968,0.28744652,606.41,604.68,1.45168929]
[1745477353174,1.26151995,606.39,604.69,2.82532146]
[1745477353373,1.26151995,606.39,604.7,1.75521474]
[1745477353673,1.26151995,606.39,604.71,1.45168929]
[1745477353865,1.26151995,606.39,604.72,1.45168929]
[1745477354070,1.26151995,606.39,604.73,1.45168929]
[1745477354270,1.26151995,606.39,604.74,2.52179601]
[1745477354470,1.26151995,606.39,604.75,1.45168929]